fUST/lending_fUST_20251213
["ID","MTS","AMOUNT","RATE_DAILY","PERIOD"]
[398388746,1765576710144,150.0,8.178e-05,2]
[398388751,1765576775278,150.0,7.506e-05,2]
[398388752,1765576775768,150.0,8.189e-05,2]
[398388753,1765576891419,4018.83,8.56e-05,2]
[398388754,1765576891448,696.3891258,8.56e-05,2]
[398388755,1765576906785,5000.0,8.56e-05,2]
[398388757,1765576929186,4303.6208742,8.56e-05,2]
[398388758,1765576929211,696.3791258,8.56e-05,2]
[398388759,1765576952282,5000.0,8.56e-05,2]
[398388760,1765576959517,294.0,8.56e-05,2]
[398388761,1765576970933,150.0,7.523e-05,2]
[398388762,1765576971350,150.0,8.207e-05,2]
[398388763,1765576974574,1053.1908742,8.56e-05,2]
[398388764,1765577049658,150.0,7.529e-05,2]
[398388765,1765577050322,150.0,8.213e-05,2]
[398388766,1765577062268,163.72046547,8.56e-05,2]
[398388767,1765577085943,3946.8091258,8.56e-05,2]
[398388768,1765577108706,1888.25648097,8.56e-05,2]
[398388769,1765577116479,2498.03305356,8.56e-05,2]
[398388770,1765577139122,150.0,7.068e-05,2]
[398388771,1765577139812,150.0,7.404e-05,2]
[398388772,1765577140241,157.26,7.741e-05,2]
[398388773,1765577140636,209.67,8.077e-05,2]
[398388774,1765577141026,262.09,8.414e-05,2]
[398388775,1765577217329,150.0,6.754e-05,2]
[398388776,1765577217736,150.0,7.075e-05,2]
[398388777,1765577218530,-313.72046547,8.56e-05,2]
[398388778,1765577218572,150.0,7.397e-05,2]
[398388779,1765577218752,162.38,7.718e-05,2]
[398388780,1765577218975,202.97,8.04e-05,2]
[398388781,1765577219394,243.57,8.361e-05,2]
[398388782,1765577245095,-1075.50953453,8.56e-05,2]
[398388783,1765577245115,-661.47892725,8.56e-05,2]
[398388784,1765577281221,163.94,8.551e-05,2]
[398388785,1765577281369,163.91,8.551e-05,2]
[398388786,1765577292003,150.0,6.986e-05,2]
[398388787,1765577292426,150.0,7.319e-05,2]
[398388788,1765577292841,150.0,7.651e-05,2]
[398388789,1765577293270,150.0,7.984e-05,2]
[398388790,1765577293693,150.0,8.317e-05,2]
[398388791,1765577309499,1504.45889339,8.56e-05,2]
[398388792,1765577355256,-174.16,8.649e-05,2]
[398388793,1765577355278,-542.0,8.679e-05,2]
[398388794,1765577355299,-282.96364319,8.679e-05,2]
[398388795,1765577355322,-150.0,8.701e-05,2]
[398388796,1765577355345,-203.18,8.982e-05,2]
[398388797,1765577355366,-202.51463167,9.107e-05,2]
[398388798,1765577355388,-232.21,9.315e-05,2]
[398388799,1765577355411,-261.24,9.647e-05,2]
[398388800,1765577355433,-290.26,9.98e-05,2]
[398388801,1765577355454,-276.02447955,0.00010082,2]
[398388802,1765577355475,-202.51463167,0.00010363,2]
[398388803,1765577355494,-177.0,0.00010701,2]
[398388804,1765577355516,-748.87469203,0.00010968,2]
[398388805,1765577355536,-276.02447955,0.00011167,2]
[398388806,1765577355556,-3731.42509701,0.00011545,2]
[398388807,1765577355575,-202.51463167,0.00011619,2]
[398388808,1765577355595,-300.0,0.00011629,2]
[398388809,1765577355615,-331.86493172,0.0001163,2]
[398388810,1765577355633,-597.35687709,0.0001163,2]
[398388811,1765577355653,-1061.9677815,0.0001163,2]
[398388812,1765577355672,-1677.27376985,0.0001171,2]
[398388813,1765577363195,150.0,6.635e-05,2]
[398388814,1765577363608,150.0,6.951e-05,2]
[398388845,1765577432487,-273.42994635,0.0001171,2]
[398388846,1765577432498,-150.0,0.0001193,2]
[398388847,1765577432508,-451.39396205,0.00012152,7]
[398388848,1765577432519,-101.48223626,0.00012152,7]
[398388849,1765577432528,-238.0,0.00012167,2]
[398388850,1765577432537,-300.0,0.00012167,2]
[398388851,1765577432546,-37.55519299,0.00012168,2]
[398388852,1765577432564,-1661.44480701,0.00012168,2]
[398388853,1765577432572,-208.13099236,0.00012168,2]
[398388854,1765577432581,-2773.56790519,0.00012168,2]
[398388855,1765577432590,-152.0,0.00012172,2]
[398388856,1765577432599,-500.0,0.00012172,2]
[398388857,1765577432608,-500.0,0.00012172,2]
[398388858,1765577432617,-500.0,0.00012172,2]
[398388859,1765577432626,-150.0,0.00012172,2]
[398388860,1765577432636,-500.0,0.00012172,2]
[398388862,1765577432645,-500.0,0.00012172,2]
[398388864,1765577432654,-150.0,0.00012172,2]
[398388866,1765577432663,-500.0,0.00012172,2]
[398388868,1765577432673,-150.0,0.00012172,2]
[398388870,1765577432683,-150.0,0.00012172,2]
[398388872,1765577432693,-150.0,0.00012172,2]
[398388874,1765577432702,-150.0,0.00012172,2]
[398388876,1765577432712,-500.0,0.00012172,2]
[398388878,1765577432721,-243.03,0.00012209,2]
[398388880,1765577432731,-174.01,0.00012209,2]
[398388882,1765577432740,-174.01,0.00012209,2]
[398388884,1765577432750,-174.01,0.00012209,2]
[398388886,1765577432759,-500.0,0.00012235,2]
[398388888,1765577432768,-500.0,0.00012235,2]
[398388890,1765577432777,-500.0,0.00012235,2]
[398388892,1765577432787,-500.0,0.00012235,2]
[398388894,1765577432796,-500.0,0.00012235,2]
[398388896,1765577432806,-500.0,0.00012235,2]
[398388898,1765577432816,-500.0,0.00012235,2]
[398388900,1765577432824,-500.0,0.00012235,2]
[398388902,1765577432833,-500.0,0.00012235,2]
[398388904,1765577432842,-46.61071208,0.00012235,2]
[398388938,1765577438320,-453.38928792,0.00012235,2]
[398388940,1765577438330,-22.61070588,0.00012235,2]
[398388942,1765577438342,-477.38929412,0.00012235,2]
[398388944,1765577438352,-250.0,0.00012235,2]
[398388946,1765577438362,-159.35694728,0.00012235,2]
[398388948,1765577438374,-90.64305272,0.00012235,2]
[398388950,1765577438384,-438.14452309,0.00012235,2]
[398388952,1765577438396,-135.98403328,0.00012235,2]
[398388954,1765577438405,-250.0,0.00012235,2]
[398388956,1765577438415,-250.0,0.00012235,2]
[398388957,1765577438426,-140.72251412,0.00012235,2]
[398388960,1765577438442,-109.27748588,0.00012235,2]
[398388962,1765577438451,-250.0,0.00012235,2]
[398388964,1765577438462,-250.0,0.00012235,2]
[398388966,1765577438471,-250.0,0.00012235,2]
[398388968,1765577438481,-250.0,0.00012235,2]
[398388970,1765577438490,-250.0,0.00012235,2]
[398388972,1765577438499,-250.0,0.00012235,2]
[398388974,1765577438508,-250.0,0.00012235,2]
[398388976,1765577438517,-250.0,0.00012235,2]
[398388978,1765577438526,-250.0,0.00012235,2]
[398388979,1765577438536,-678.39449117,0.00012243,2]
[398388980,1765577438545,-1221.11008411,0.00012243,2]
[398388982,1765577438554,-2170.86237174,0.00012243,2]
[398388984,1765577438564,-3391.97245585,0.00012243,2]
[398388986,1765577438573,-4884.44033643,0.00012243,2]
[398388988,1765577438583,-276.02447955,0.00012253,2]
[398388989,1765577438592,-500.0,0.00012307,2]
[398388991,1765577438600,-500.0,0.00012307,2]
[398388993,1765577438610,-500.0,0.00012307,2]
[398388995,1765577438619,-500.0,0.00012307,2]
[398388997,1765577438628,-500.0,0.00012307,2]
[398388999,1765577438638,-500.0,0.00012307,2]
[398389001,1765577438647,-377.83178927,0.00012307,2]
[398389003,1765577438657,-500.0,0.00012307,2]
[398389005,1765577438666,-500.0,0.00012307,2]
[398389006,1765577438675,-500.0,0.00012307,2]
[398389007,1765577438685,-500.0,0.00012307,2]
[398389008,1765577438694,-469.67163484,0.00012307,2]
[398389009,1765577438703,-500.0,0.00012307,2]
[398389010,1765577438713,-500.0,0.00012307,2]
[398389011,1765577438722,-500.0,0.00012307,2]
[398389012,1765577438732,-500.0,0.00012307,2]
[398389013,1765577438741,-500.0,0.00012307,2]
[398389014,1765577438750,-500.0,0.00012307,2]
[398389015,1765577438759,-500.0,0.00012307,2]
[398389016,1765577438768,-500.0,0.00012307,2]
[398389017,1765577438778,-276.02406306,0.00012307,2]
[398389018,1765577438937,-500.0,0.00012307,2]
[398389019,1765577438947,-500.0,0.00012307,2]
[398389020,1765577438956,-500.0,0.00012307,2]
[398389021,1765577438966,-500.0,0.00012307,2]
[398389022,1765577438976,-500.0,0.00012308,2]
[398389023,1765577438985,-500.0,0.00012309,2]
[398389024,1765577438995,-500.0,0.00012309,2]
[398389025,1765577439006,-500.0,0.00012309,2]
[398389026,1765577439016,-150.0,0.00012309,2]
[398389027,1765577439026,-500.0,0.00012309,2]
[398389028,1765577439036,-500.0,0.00012309,2]
[398389029,1765577439046,-150.0,0.00012309,2]
[398389030,1765577439055,-500.0,0.00012309,2]
[398389031,1765577439065,-150.0,0.00012309,2]
[398389032,1765577439075,-150.0,0.00012309,2]
[398389033,1765577439085,-150.0,0.00012309,2]
[398389034,1765577439095,-150.0,0.00012309,2]
[398389035,1765577439105,-500.0,0.00012309,2]
[398389036,1765577439114,-3558.92988729,0.00012413,2]
[398389037,1765577439125,-2000.0,0.00012437,3]
[398389038,1765577439134,-500.0,0.00012446,2]
[398389039,1765577439145,-500.0,0.00012446,2]
[398389040,1765577439155,-500.0,0.00012446,2]
[398389041,1765577439164,-150.0,0.00012446,2]
[398389042,1765577439174,-500.0,0.00012446,2]
[398389043,1765577439184,-500.0,0.00012446,2]
[398389044,1765577439193,-500.0,0.00012446,2]
[398389045,1765577439202,-154.32685488,0.00012446,2]
[398389046,1765577439212,-150.0,0.00012446,2]
[398389047,1765577439222,-154.00802856,0.00012446,2]
[398389048,1765577439232,-150.0,0.00012446,2]
[398389049,1765577439242,-150.0,0.00012446,2]
[398389050,1765577439251,-500.0,0.00012446,2]
[398389051,1765577439261,-500.0,0.00012446,2]
[398389052,1765577439270,-150.0,0.00012446,2]
[398389053,1765577439280,-150.0,0.00012446,2]
[398389054,1765577439289,-150.0,0.00012446,2]
[398389055,1765577439299,-150.0,0.00012446,2]
[398389056,1765577439309,-150.0,0.00012446,2]
[398389057,1765577439318,-150.0,0.00012446,2]
[398389058,1765577439328,-150.0,0.00012446,2]
[398389059,1765577439338,-500.0,0.00012446,2]
[398389060,1765577439347,-259.85475127,0.00012446,2]
[398389061,1765577439357,-150.0,0.00012446,2]
[398389062,1765577439366,-312.713,0.00012446,2]
[398389063,1765577439376,-184.773,0.00012446,2]
[398389064,1765577439385,-153.61,0.00012446,2]
[398389065,1765577439394,-16893.37736006,0.000125,2]
[398389066,1765577439404,-500.0,0.00012582,2]
[398389067,1765577439414,-500.0,0.00012583,2]
[398389068,1765577439423,-500.0,0.00012583,2]
[398389069,1765577439432,-500.0,0.00012583,2]
[398389070,1765577439441,-150.0,0.00012583,2]
[398389071,1765577439451,-229.75315617,0.00012583,2]
[398389072,1765577439460,-500.0,0.00012583,2]
[398389073,1765577439469,-330.82650792,0.00012583,2]
[398389074,1765577439478,-150.0,0.00012583,2]
[398389075,1765577439488,-150.0,0.00012583,2]
[398389076,1765577439497,-150.0,0.00012583,2]
[398389077,1765577439506,-500.0,0.00012583,2]
[398389078,1765577439515,-150.0,0.00012583,2]
[398389079,1765577439525,-153.33266293,0.00012583,2]
[398389080,1765577439534,-150.0,0.00012583,2]
[398389081,1765577439544,-150.0,0.00012583,2]
[398389082,1765577439553,-150.0,0.00012583,2]
[398389083,1765577439563,-199.84203383,0.00012583,2]
[398389084,1765577439572,-150.0,0.00012583,2]
[398389085,1765577439581,-500.0,0.00012583,2]
[398389086,1765577439590,-212.45464737,0.00012583,2]
[398389087,1765577439600,-890000.0,0.000126,2]
[398389088,1765577439610,-151.0,0.000126,2]
[398389089,1765577439619,-151.0,0.000126,2]
[398389090,1765577439628,-151.0,0.000126,2]
[398389091,1765577439637,-1848.6163,0.000126,2]
[398389092,1765577439647,-1848.6163,0.000126,2]
[398389093,1765577439656,-1848.6163,0.000126,2]
[398389094,1765577439666,-1848.6163,0.000126,2]
[398389095,1765577439676,-236.73508384,0.00012642,2]
[398389096,1765577439686,-243.0295,0.00012642,2]
[398389097,1765577439695,-302.57053253,0.0001269,7]
[398389098,1765577439705,-2000.0,0.00012699,2]
[398389099,1765577439714,-28235.4584755,0.000127,2]
[398389100,1765577439724,-151.0,0.000127,2]
[398389101,1765577439733,-151.0,0.000127,2]
[398389102,1765577439743,-151.0,0.000127,2]
[398389103,1765577439752,-1848.6163,0.000127,2]
[398389104,1765577439761,-1848.6163,0.000127,2]
[398389105,1765577439770,-1848.6163,0.000127,2]
[398389106,1765577439779,-1848.6163,0.000127,2]
[398389107,1765577439789,-1000.0,0.000127,2]
[398389108,1765577439798,-1000.0,0.000127,2]
[398389109,1765577439807,-151.0,0.000127,2]
[398389110,1765577439817,-151.0,0.000127,2]
[398389111,1765577439826,-151.0,0.000127,2]
[398389112,1765577439835,-152.36165063,0.000127,2]
[398389113,1765577439844,-3548.7476952,0.00012712,2]
[398389114,1765577439854,-2744.9183259,0.00012712,2]
[398389115,1765577439863,-1699.0,0.00012716,2]
[398389116,1765577439873,-500.0,0.0001272,2]
[398389117,1765577439882,-500.0,0.0001272,2]
[398389118,1765577439891,-500.0,0.0001272,2]
[398389119,1765577439901,-206.69213397,0.0001272,2]
[398389120,1765577439910,-500.0,0.0001272,2]
[398389121,1765577439919,-150.0,0.0001272,2]
[398389122,1765577439931,-159.50130545,0.0001272,2]
[398389123,1765577439941,-150.0,0.0001272,2]
[398389124,1765577439950,-500.0,0.0001272,2]
[398389125,1765577439959,-150.0,0.0001272,2]
[398389126,1765577439968,-150.0,0.0001272,2]
[398389127,1765577439979,-153.52713657,0.0001272,2]
[398389128,1765577439988,-150.0,0.0001272,2]
[398389129,1765577439997,-169.95229559,0.0001272,2]
[398389130,1765577440008,-500.0,0.0001272,2]
[398389131,1765577440017,-153.62,0.0001272,2]
[398389132,1765577440026,-595.37131296,0.00012783,2]
[398389133,1765577440035,-317.02877448,0.000128,2]
[398389134,1765577440045,-362.31859941,0.000128,2]
[398389135,1765577440054,-563.68434356,0.00012819,2]
[398389136,1765577440064,-1014.6318184,0.00012819,2]
[398389137,1765577440073,-1803.78989938,0.00012819,2]
[398389138,1765577440082,-500.0,0.00012857,2]
[398389139,1765577440092,-500.0,0.00012857,2]
[398389140,1765577440101,-500.0,0.00012857,2]
[398389141,1765577440111,-500.0,0.00012857,2]
[398389142,1765577440121,-250.0,0.00012857,2]
[398389143,1765577440131,-250.0,0.00012857,2]
[398389144,1765577440140,-500.0,0.00012857,2]
[398389146,1765577440149,-265.0936571,0.00012857,2]
[398389147,1765577440159,-150.0,0.00012857,2]
[398389148,1765577440168,-150.0,0.00012857,2]
[398389149,1765577440178,-534.73556782,0.00012857,2]
[398389150,1765577440187,-202.51463167,0.00012875,2]
[398389151,1765577440196,-151.0,0.0001288,2]
[398389152,1765577440205,-151.0,0.0001288,2]
[398389153,1765577440214,-151.0,0.0001288,2]
[398389154,1765577440223,-1848.6163,0.0001288,2]
[398389155,1765577440233,-1848.6163,0.0001288,2]
[398389156,1765577440242,-1848.6163,0.0001288,2]
[398389157,1765577440251,-1848.6163,0.0001288,2]
[398389158,1765577440260,-1000.0,0.000129,2]
[398389159,1765577440270,-8631.81052035,0.000129,2]
[398389160,1765577440279,-538.21461371,0.00012994,2]
[398389161,1765577440289,-443.22419836,0.00012994,2]
[398389162,1765577440299,-500.0,0.00012994,2]
[398389163,1765577440308,-500.0,0.00012994,2]
[398389165,1765577440317,-300.51441089,0.00012994,2]
[398389167,1765577440327,-156.09789928,0.00012994,2]
[398389169,1765577440337,-150.0,0.00012994,2]
[398389171,1765577440346,-151.0,0.00012994,2]
[398389173,1765577440355,-151.0,0.00012994,2]
[398389175,1765577440363,-151.0,0.00012994,2]
[398389177,1765577440373,-500.0,0.00013131,2]
[398389179,1765577440382,-500.0,0.00013131,2]
[398389181,1765577440391,-206.36371327,0.00013131,2]
[398389183,1765577440400,-2818.42171778,0.00013166,2]
[398389185,1765577440409,-1699.0,0.00013264,2]
[398389187,1765577440418,-500.0,0.00013268,2]
[398389189,1765577440428,-500.0,0.00013268,2]
[398389191,1765577440439,-1848.6163,0.00013268,2]
[398389193,1765577440448,-1848.6163,0.00013268,2]
[398389195,1765577440457,-1848.6163,0.00013268,2]
[398389197,1765577440466,-1848.6163,0.00013268,2]
[398389199,1765577440477,-500.0,0.00013273,2]
[398389201,1765577440486,-500.0,0.00013273,2]
[398389203,1765577440496,-500.0,0.00013273,2]
[398389204,1765577440504,-563.38028394,0.00013273,2]
[398389205,1765577440514,-500.0,0.00013273,2]
[398389206,1765577440523,-500.0,0.00013273,2]
[398389207,1765577440532,-500.0,0.00013273,2]
[398389208,1765577440542,-500.0,0.00013273,2]
[398389209,1765577440551,-500.0,0.00013273,2]
[398389210,1765577440560,-500.0,0.00013273,2]
[398389211,1765577440570,-500.0,0.00013273,2]
[398389212,1765577440579,-500.0,0.00013273,2]
[398389213,1765577440588,-500.0,0.00013273,2]
[398389214,1765577440598,-500.0,0.00013273,2]
[398389215,1765577440607,-500.0,0.00013273,2]
[398389216,1765577440616,-500.0,0.00013273,2]
[398389217,1765577440625,-500.0,0.00013273,2]
[398389218,1765577440634,-617.40005154,0.00013331,2]
[398389219,1765577440643,-276.02447955,0.00013338,2]
[398389220,1765577440653,-420.0,0.00013355,2]
[398389221,1765577440662,-2209.29328845,0.00013356,7]
[398389222,1765577440672,-500.0,0.00013405,2]
[398389223,1765577440798,-500.0,0.00013405,2]
[398389224,1765577440807,-268.84627391,0.0001344,7]
[398389225,1765577440817,-500.0,0.00013542,2]
[398389226,1765577440828,-500.0,0.00013542,2]
[398389227,1765577440838,-730.0,0.00013668,2]
[398389228,1765577440850,-300.0,0.00013673,2]
[398389229,1765577440860,-500.0,0.00013679,2]
[398389230,1765577440870,-596.0,0.00013679,2]
[398389231,1765577440880,-151.0,0.00013679,2]
[398389232,1765577440889,-151.0,0.00013679,2]
[398389233,1765577440898,-222.928176,0.00013679,2]
[398389234,1765577440909,-500.0,0.00013698,2]
[398389235,1765577440918,-232.3479746,0.00013698,2]
[398389236,1765577440928,-500.0,0.00013698,2]
[398389237,1765577440939,-500.0,0.00013698,2]
[398389238,1765577440948,-500.0,0.00013698,2]
[398389239,1765577440957,-500.0,0.00013698,2]
[398389240,1765577440966,-500.0,0.00013698,2]
[398389241,1765577440975,-500.0,0.00013698,2]
[398389242,1765577440983,-500.0,0.00013698,2]
[398389243,1765577440992,-500.0,0.00013698,2]
[398389244,1765577441000,-551.44,0.00013698,2]
[398389245,1765577441009,-536.58,0.00013698,2]
[398389246,1765577441018,-1848.6163,0.00013698,2]
[398389247,1765577441027,-1848.6163,0.00013698,2]
[398389248,1765577441036,-1848.6163,0.00013698,2]
[398389249,1765577441044,-1848.616309,0.00013698,2]
[398389250,1765577441053,-881.95,0.00013698,2]
[398389251,1765577441062,-881.95,0.00013698,2]
[398389252,1765577441071,-881.95,0.00013698,2]
[398389253,1765577441079,-881.95,0.00013698,2]
[398389254,1765577441088,-881.95,0.00013698,2]
[398389255,1765577441097,-881.95,0.00013698,2]
[398389256,1765577441106,-881.95,0.00013698,2]
[398389257,1765577441114,-881.95,0.00013698,2]
[398389258,1765577441123,-881.95,0.00013698,2]
[398389259,1765577441132,-881.95,0.00013698,2]
[398389260,1765577441141,-881.95,0.00013698,2]
[398389261,1765577441149,-881.95,0.00013698,2]
[398389262,1765577441158,-881.95,0.00013698,2]
[398389263,1765577441167,-881.95,0.00013698,2]
[398389264,1765577441176,-881.95,0.00013698,2]
[398389265,1765577441184,-881.95,0.00013698,2]
[398389266,1765577441193,-881.95,0.00013698,2]
[398389267,1765577441202,-881.95,0.00013698,2]
[398389268,1765577441211,-1000.0,0.00013699,2]
[398389269,1765577441220,-1087.642641,0.00013699,2]
[398389270,1765577441228,-12846.7272755,0.00013699,2]
[398389271,1765577441237,-1500.0,0.00013699,2]
[398389272,1765577441246,-151.0,0.00013699,2]
[398389273,1765577441255,-151.0,0.00013699,2]
[398389274,1765577441264,-151.0,0.00013699,2]
[398389275,1765577441272,-151.0,0.00013699,2]
[398389276,1765577441281,-151.0,0.00013699,2]
[398389277,1765577441290,-196.0,0.00013699,2]
[398389278,1765577441299,-500.0,0.00013699,2]
[398389279,1765577441308,-500.0,0.00013699,2]
[398389280,1765577441316,-500.0,0.00013699,2]
[398389281,1765577441325,-500.0,0.00013699,2]
[398389282,1765577441334,-500.0,0.00013699,2]
[398389283,1765577441343,-160.0,0.00013699,2]
[398389284,1765577441351,-627.26031699,0.00013699,2]
[398389285,1765577441360,-522.68621075,0.00013769,2]
[398389286,1765577441369,-730.0,0.00013805,2]
[398389287,1765577441378,-1699.0,0.00013812,2]
[398389288,1765577441387,-1000.0,0.00013821,2]
[398389289,1765577441396,-1000.0,0.00013821,2]
[398389290,1765577441404,-1000.0,0.00013821,2]
[398389291,1765577441413,-1000.0,0.00013821,2]
[398389292,1765577441422,-1000.0,0.00013821,2]
[398389293,1765577441431,-640.24385345,0.00013879,2]
[398389294,1765577441439,-177.0,0.0001393,2]
[398389295,1765577441448,-730.0,0.00013942,2]
[398389296,1765577441457,-1075.38509564,0.00014051,7]
[398389297,1765577441466,-730.0,0.00014079,2]
[398389298,1765577441474,-202.7171463,0.00014131,2]
[398389299,1765577441483,-205.69260275,0.000142,2]
[398389300,1765577441492,-730.0,0.00014216,2]
[398389301,1765577441500,-600.0,0.00014221,2]
[398389302,1765577441509,-798.31140917,0.00014247,2]
[398389303,1765577441517,-1000.0,0.00014247,2]
[398389304,1765577441526,-1000.0,0.00014247,2]
[398389305,1765577441534,-1000.0,0.00014247,2]
[398389306,1765577441543,-260.0,0.00014247,2]
[398389307,1765577441551,-1563.7915147,0.00014265,2]
[398389308,1765577441560,-730.0,0.00014353,2]
[398389309,1765577441569,-1699.0,0.0001436,2]
[398389310,1765577441578,-1500.0,0.00014368,2]
[398389311,1765577441589,-1500.0,0.00014368,2]
[398389312,1765577441598,-1500.0,0.00014368,2]
[398389313,1765577441607,-1500.0,0.00014368,2]
[398389314,1765577441616,-1500.0,0.00014368,2]
[398389315,1765577441626,-276.30050403,0.00014423,2]
[398389316,1765577441635,-663.93287602,0.00014427,2]
[398389317,1765577441644,-940.83517935,0.00014438,2]
[398389318,1765577441654,-258.291,0.00014469,2]
[398389319,1765577441663,-266.221,0.00014469,2]
[398389320,1765577441673,-2156.0,0.00014469,2]
[398389321,1765577441682,-1360.0,0.00014469,2]
[398389322,1765577441691,-631.0,0.00014469,2]
[398389323,1765577441701,-730.0,0.0001449,2]
[398389324,1765577441710,-6300.1823715,0.00014492,2]
[398389325,1765577441720,-730.0,0.00014627,2]
[398389326,1765577441730,-348.9290511,0.00014633,2]
[398389327,1765577441739,-587.0,0.00014658,2]
[398389328,1765577441748,-730.0,0.00014764,2]
[398389329,1765577441757,-900.0,0.00014768,2]
[398389330,1765577441767,-1500.0,0.00014795,2]
[398389331,1765577441776,-1500.0,0.00014795,2]
[398389332,1765577441786,-1500.0,0.00014795,2]
[398389333,1765577441796,-360.0,0.00014795,2]
[398389334,1765577441806,-500.0,0.0001489,7]
[398389335,1765577441815,-500.0,0.0001489,7]
[398389336,1765577441824,-500.0,0.0001489,7]
[398389337,1765577441835,-500.0,0.0001489,7]
[398389338,1765577441845,-500.0,0.0001489,7]
[398389339,1765577441854,-500.0,0.0001489,7]
[398389340,1765577441865,-500.0,0.0001489,7]
[398389341,1765577441875,-500.0,0.0001489,7]
[398389342,1765577441885,-500.0,0.0001489,7]
[398389343,1765577441894,-500.0,0.0001489,7]
[398389344,1765577441904,-500.0,0.0001489,7]
[398389345,1765577441913,-500.0,0.0001489,7]
[398389346,1765577441924,-500.0,0.0001489,7]
[398389347,1765577441938,-500.0,0.0001489,7]
[398389348,1765577441948,-500.0,0.0001489,7]
[398389349,1765577441957,-500.0,0.0001489,7]
[398389350,1765577441966,-500.0,0.0001489,7]
[398389351,1765577441977,-500.0,0.0001489,7]
[398389352,1765577441987,-500.0,0.0001489,7]
[398389353,1765577441996,-500.0,0.0001489,7]
[398389354,1765577442006,-500.0,0.0001489,7]
[398389355,1765577442015,-500.0,0.0001489,7]
[398389356,1765577442025,-500.0,0.0001489,7]
[398389357,1765577442035,-500.0,0.0001489,7]
[398389358,1765577442044,-500.0,0.0001489,7]
[398389359,1765577442053,-500.0,0.0001489,7]
[398389360,1765577442062,-500.0,0.0001489,7]
[398389361,1765577442074,-500.0,0.0001489,7]
[398389362,1765577442083,-500.0,0.0001489,7]
[398389363,1765577442092,-500.0,0.0001489,7]
[398389364,1765577442101,-500.0,0.0001489,7]
[398389365,1765577442111,-500.0,0.0001489,7]
[398389366,1765577442121,-500.0,0.0001489,7]
[398389367,1765577442131,-500.0,0.0001489,7]
[398389368,1765577442142,-500.0,0.0001489,7]
[398389369,1765577442152,-500.0,0.0001489,7]
[398389370,1765577442161,-500.0,0.0001489,7]
[398389371,1765577442171,-500.0,0.0001489,7]
[398389372,1765577442180,-500.0,0.0001489,7]
[398389373,1765577442189,-500.0,0.0001489,7]
[398389374,1765577442199,-500.0,0.0001489,7]
[398389375,1765577442211,-500.0,0.0001489,7]
[398389376,1765577442220,-500.0,0.0001489,7]
[398389377,1765577442229,-500.0,0.0001489,7]
[398389378,1765577442238,-500.0,0.0001489,7]
[398389379,1765577442247,-500.0,0.0001489,7]
[398389380,1765577442256,-500.0,0.0001489,7]
[398389381,1765577442265,-500.0,0.0001489,7]
[398389382,1765577442275,-500.0,0.0001489,7]
[398389383,1765577442284,-500.0,0.0001489,7]
[398389384,1765577442294,-500.0,0.0001489,7]
[398389385,1765577442303,-500.0,0.0001489,7]
[398389386,1765577442312,-500.0,0.0001489,7]
[398389387,1765577442322,-500.0,0.0001489,7]
[398389388,1765577442331,-500.0,0.0001489,7]